bitfinex-derivatives/quotes_SOLF0:USTF0_20250818
["timestamp","ask_amount","ask_price","bid_price","bid_amount"]
[1755529178275,145.56,182.51,182.43,11.56416163]
[1755529178973,6.06009059,182.58,182.43,6.08546163]
[1755529179174,58.03484092,182.57,182.47,6.08546163]
[1755529179381,4.03484092,182.56,182.47,6.08546163]
[1755529179582,54.0,182.57,182.47,6.08546163]
[1755529179778,4.03149588,182.56,182.47,6.08546163]
[1755529179979,4.03149588,182.55,182.47,6.08546163]
[1755529180182,54.0,182.57,182.47,6.08546163]
[1755529180381,4.02951048,182.56,182.47,6.08546163]
[1755529180575,4.02951048,182.55,182.47,6.08546163]
[1755529180775,54.0,182.57,182.47,6.08546163]
[1755529180976,4.02950992,182.56,182.47,6.08546163]
[1755529181171,4.02950992,182.55,182.47,6.08546163]
[1755529181373,4.02825788,182.54,182.47,6.08546163]
[1755529181676,54.0,182.57,182.47,6.08546163]
[1755529181981,4.0281706,182.56,182.47,6.08546163]
[1755529182277,4.0281706,182.55,182.47,6.08546163]
[1755529182478,58.0281706,182.54,182.47,6.08546163]
[1755529182680,4.02706805,182.53,182.47,6.08546163]
[1755529182876,54.0,182.54,182.47,6.08546163]
[1755529183079,4.02711441,182.53,182.47,6.08546163]
[1755529183384,54.0,182.54,182.47,6.08546163]
[1755529183586,4.02627039,182.53,182.44,6.08546163]
[1755529183779,54.0,182.54,182.44,6.08546163]
[1755529183985,4.02635763,182.53,182.44,6.08546163]
[1755529184284,54.0,182.54,182.44,6.08546163]
[1755529186386,54.0,182.54,182.44,11.56366163]
[1755529187682,54.0,182.54,182.44,6.08546163]
[1755529187887,54.0,182.54,182.43,6.08546163]
[1755529188386,54.0,182.54,182.46,3.85124467]
[1755529189188,4.02339055,182.53,182.46,3.85124467]
[1755529189487,54.0,182.54,182.46,3.85124467]
[1755529189691,4.02339055,182.53,182.46,3.85124467]
[1755529189889,4.02383192,182.52,182.46,3.85124467]
[1755529190089,54.0,182.54,182.46,3.85124467]
[1755529190288,4.02694369,182.53,182.43,3.85124467]
[1755529190480,4.02694369,182.52,182.43,3.85124467]
[1755529190684,4.02694369,182.51,182.43,3.85124467]
[1755529190986,54.0,182.53,182.43,3.85124467]
[1755529191180,6.06009059,182.6,182.52,3.85124467]
[1755529191387,4.02935827,182.59,182.52,3.85124467]
[1755529191692,4.02935827,182.58,182.52,3.85124467]
[1755529191891,4.02935827,182.57,182.52,3.85124467]
[1755529192092,4.02935827,182.56,182.52,3.85124467]
[1755529192392,512.52,182.62,182.55,3.85124467]
[1755529192588,4.02885181,182.61,182.55,3.85124467]
[1755529192789,4.02885181,182.6,182.55,3.85124467]
[1755529192984,144.2,182.62,182.55,3.85124467]
[1755529193188,4.02883577,182.61,182.55,3.85124467]
[1755529193383,4.02883577,182.6,182.55,3.85124467]
[1755529193586,144.2,182.62,182.55,3.85124467]
[1755529193787,4.02907973,182.61,182.55,3.85124467]
[1755529193986,4.02907973,182.6,182.55,3.85124467]
[1755529194190,4.02899314,182.59,182.55,3.85124467]
[1755529194487,16.48,182.67,182.56,6.06229423]
[1755529194488,6.06009059,182.67,182.56,6.06229423]
[1755529194695,16.48,182.71,182.56,6.06229423]
[1755529194696,4.02889787,182.66,182.56,11.53709423]
[1755529194890,4.02889787,182.65,182.56,11.53709423]
[1755529195090,4.02889787,182.64,182.56,11.53709423]
[1755529195290,4.02889787,182.63,182.56,11.53709423]
[1755529195489,4.02889787,182.62,182.57,5.4744]
[1755529195795,150.10009059,182.69,182.56,6.06229423]
[1755529195993,8.33172481,182.68,182.56,6.06229423]
[1755529196192,4.02687602,182.67,182.56,6.06229423]
[1755529196394,4.02687602,182.66,182.56,6.06229423]
[1755529196598,4.02687602,182.65,182.56,6.06229423]
[1755529196796,4.02687602,182.64,182.56,6.06229423]
[1755529196991,4.02687602,182.63,182.56,6.06229423]
[1755529197190,4.02687602,182.62,182.56,6.06229423]
[1755529197390,6.06009059,182.68,182.56,6.06229423]
[1755529197687,8.3277331,182.67,182.56,6.06229423]
[1755529197886,4.02499997,182.66,182.56,6.06229423]
[1755529198097,4.02499997,182.65,182.56,6.06229423]
[1755529198296,4.02499997,182.64,182.56,6.06229423]
[1755529198492,4.02499997,182.64,182.53,5.4754]
[1755529198493,4.02499997,182.63,182.53,6.06229423]
[1755529198794,4.02499997,182.62,182.53,6.06229423]
[1755529198998,4.02499997,182.61,182.5,6.06229423]
[1755529199198,6.06009059,182.64,182.5,6.06229423]
[1755529199199,4.02499997,182.6,182.5,6.06229423]
[1755529199392,4.02499997,182.59,182.5,6.06229423]
[1755529199588,4.02499997,182.58,182.5,6.06229423]
[1755529199889,4.02499997,182.57,182.5,6.06229423]
[1755529200091,4.02499997,182.56,182.5,6.06229423]
[1755529200289,4.02602495,182.55,182.39,6.06229423]
[1755529200590,4.02602495,182.54,182.44,6.06229423]
[1755529200793,4.02602495,182.53,182.44,6.06229423]
[1755529200998,4.02602495,182.52,182.44,6.06229423]
[1755529201196,6.06009059,182.58,182.44,6.06229423]
[1755529201397,4.02715399,182.57,182.44,11.54069423]
[1755529201603,4.02715399,182.56,182.44,11.54069423]
[1755529201899,4.02715399,182.55,182.5,6.06229423]
[1755529202098,54.0,182.6,182.5,6.06229423]
[1755529202403,4.02709468,182.59,182.5,6.06229423]
[1755529202602,4.02709468,182.58,182.53,6.06229423]
[1755529202899,4.02709468,182.57,182.53,6.06229423]
[1755529203087,54.0,182.6,182.53,6.06229423]
[1755529203288,4.02739526,182.59,182.53,6.06229423]
[1755529203489,54.0,182.64,182.56,6.06229423]
[1755529203693,4.01618744,182.63,182.56,6.06229423]
[1755529203897,4.01618744,182.62,182.56,6.06229423]
[1755529204097,4.01618744,182.61,182.56,6.06229423]
[1755529204296,4.01618744,182.6,182.56,6.06229423]
[1755529204596,54.0,182.64,182.56,6.06229423]
[1755529204798,4.01615293,182.63,182.56,6.06229423]
[1755529204998,4.01615293,182.62,182.56,6.06229423]
[1755529205200,4.01615293,182.61,182.54,6.06229423]
[1755529205395,4.01615293,182.6,182.54,6.06229423]
[1755529205702,54.0,182.64,182.54,6.06229423]
[1755529205906,4.01620336,182.63,182.54,6.06229423]
[1755529206102,4.01620336,182.62,182.54,11.53779423]
[1755529206302,4.01620336,182.61,182.54,11.53779423]
[1755529206499,54.0,182.64,182.54,11.53779423]
[1755529206705,4.01572361,182.63,182.54,11.53779423]
[1755529206904,4.01572361,182.62,182.54,11.53779423]
[1755529207204,4.01572361,182.61,182.54,11.53779423]
[1755529207504,54.0,182.64,182.54,6.06229423]
[1755529207807,4.01530754,182.63,182.52,6.06229423]
[1755529208007,4.01530754,182.62,182.52,6.06229423]
[1755529208201,4.01530754,182.61,182.52,6.06229423]
[1755529208508,4.01530754,182.6,182.52,6.06229423]
[1755529208707,54.0,182.64,182.52,6.06229423]
[1755529208905,4.0154453,182.63,182.52,6.06229423]
[1755529209102,4.0154453,182.62,182.52,6.06229423]
[1755529209300,4.0154453,182.61,182.52,11.53819423]
[1755529209501,54.0,182.64,182.52,11.53819423]
[1755529209704,4.01535742,182.63,182.52,6.06229423]
[1755529209897,4.01535742,182.62,182.52,6.06229423]
[1755529210211,4.01535742,182.61,182.51,5.4763]
[1755529210401,54.0,182.64,182.52,6.06229423]
[1755529210704,4.01460424,182.63,182.52,11.53829423]
[1755529210907,4.01460424,182.62,182.52,6.06229423]
[1755529211105,54.0,182.64,182.52,6.06229423]
[1755529211306,4.01426091,182.63,182.53,5.4755]
[1755529211504,4.01434788,182.62,182.52,6.06229423]
[1755529211699,54.0,182.64,182.52,11.53809423]
[1755529211896,4.01443569,182.63,182.52,11.53809423]
[1755529212106,4.01443569,182.62,182.52,11.53809423]
[1755529212310,54.0,182.64,182.52,11.53809423]
[1755529212507,4.01469421,182.63,182.52,11.53809423]
[1755529212709,4.01469421,182.62,182.52,11.53809423]
[1755529212907,54.0,182.64,182.52,6.06229423]
[1755529213209,4.01472677,182.63,182.52,6.06229423]
[1755529213409,4.01472677,182.62,182.52,6.06229423]
[1755529213610,54.0,182.64,182.52,6.06229423]
[1755529213805,4.0154016,182.63,182.52,6.06229423]
[1755529214003,4.0154016,182.62,182.52,6.06229423]
[1755529214204,58.0161245,182.61,182.52,6.06229423]
[1755529214398,58.0161245,182.61,182.38,10.9603]
[1755529214399,4.0161245,182.6,182.49,6.06229423]
[1755529214703,4.0161245,182.6,182.46,6.06229423]
[1755529215302,4.0161245,182.6,182.49,5.4769]
[1755529215712,4.0161245,182.6,182.46,6.06229423]
[1755529215909,4.0161245,182.6,182.48,5.4771]
[1755529216106,4.0161245,182.6,182.46,6.06229423]
[1755529216308,4.0161245,182.6,182.48,6.06229423]
[1755529216510,4.0161245,182.6,182.48,11.53939423]
[1755529216714,4.0161245,182.6,182.48,6.06229423]
[1755529217211,4.0161245,182.59,182.48,6.06229423]
[1755529217408,74.4961245,182.58,182.45,6.06229423]
[1755529217714,58.0161245,182.57,182.36,511.68]
[1755529217914,58.0161245,182.56,182.44,6.06229423]
[1755529218210,4.0161245,182.55,182.45,5.4779]
[1755529218409,4.0161245,182.55,182.44,6.06229423]
[1755529218611,4.0161245,182.54,182.36,511.68]
[1755529218812,4.0161245,182.53,182.36,511.68]
[1755529219012,54.0,182.56,182.43,6.06229423]
[1755529219316,58.02862265,182.55,182.43,6.06229423]
[1755529219518,4.02862265,182.54,182.43,6.06229423]
[1755529219914,4.02862265,182.54,182.46,6.06229423]
[1755529220119,54.0,182.55,182.46,6.06229423]
[1755529220823,54.0,182.55,182.49,6.06229423]
[1755529221025,54.0,182.59,182.49,6.06229423]
[1755529221222,4.03279187,182.58,182.5,5.4764]
[1755529221413,4.03279187,182.57,182.5,5.4764]
[1755529221615,6.06009059,182.64,182.52,6.06229423]
[1755529221819,4.0335076,182.63,182.54,5.4754]
[1755529222022,4.0335076,182.62,182.52,6.06229423]
[1755529222222,4.0335076,182.61,182.52,6.06229423]
[1755529222422,4.0335076,182.6,182.54,5.4754]
[1755529222622,168.72838998,182.66,182.52,6.06229423]
[1755529222822,78.77256709,182.65,182.52,6.06229423]
[1755529223020,33.4344532,182.64,182.52,6.06229423]
[1755529223215,33.43473186,182.63,182.41,208.16466628]
[1755529223419,62.33256709,182.62,182.52,6.06229423]
[1755529223627,58.03356531,182.61,182.52,6.06229423]
[1755529223824,4.03356531,182.6,182.52,6.06229423]
[1755529224026,4.03356531,182.59,182.52,11.53829423]
[1755529224227,4.03356531,182.58,182.52,11.53829423]
[1755529224427,54.0,182.61,182.52,6.06229423]
[1755529224628,4.03507302,182.6,182.52,6.06229423]
[1755529224820,4.03507302,182.59,182.52,6.06229423]
[1755529225125,4.03507302,182.58,182.53,5.4757]
[1755529225329,54.0,182.61,182.53,5.4757]
[1755529225529,4.03513071,182.6,182.52,11.53829423]
[1755529225722,4.03513071,182.59,182.52,11.53829423]
[1755529225926,4.03513071,182.58,182.52,6.06229423]
[1755529226125,54.0,182.61,182.52,6.06229423]
[1755529226332,4.03478235,182.6,182.52,6.06229423]
[1755529226625,4.03478235,182.59,182.52,6.06229423]
[1755529226825,4.03478235,182.58,182.52,6.06229423]
[1755529227020,54.0,182.61,182.52,6.06229423]
[1755529227330,4.03514007,182.6,182.52,6.06229423]
[1755529227523,4.03514007,182.59,182.52,6.06229423]
[1755529227829,4.03514007,182.58,182.52,6.06229423]
[1755529228027,4.03514007,182.57,182.52,6.06229423]
[1755529228228,54.0,182.61,182.52,6.06229423]
[1755529228427,4.03687419,182.6,182.52,6.06229423]
[1755529228726,4.03687419,182.59,182.52,6.06229423]
[1755529228920,4.03687419,182.58,182.52,6.06229423]
[1755529229121,4.03687419,182.57,182.52,6.06229423]
[1755529229318,54.0,182.61,182.52,6.06229423]
[1755529229519,58.03783077,182.6,182.52,6.06229423]
[1755529229725,4.03783077,182.59,182.52,6.06229423]
[1755529229922,4.03783077,182.58,182.52,6.06229423]
[1755529230119,4.03783077,182.57,182.52,6.06229423]
[1755529230431,54.0,182.6,182.52,6.06229423]
[1755529230630,4.03865444,182.59,182.52,6.06229423]
[1755529230834,54.0,182.6,182.52,6.06229423]
[1755529231228,54.0,182.6,182.53,5.4757]
[1755529231824,54.0,182.6,182.52,11.53829423]
[1755529232728,54.0,182.6,182.53,5.4757]
[1755529233436,4.05006607,182.59,182.53,5.4757]
[1755529233638,54.0,182.6,182.53,5.4757]
[1755529233837,4.05006776,182.59,182.54,5.4754]
[1755529234026,54.0,182.64,182.56,6.06229423]
[1755529234336,4.04936341,182.63,182.56,6.06229423]
[1755529234531,4.04936341,182.62,182.56,6.06229423]
[1755529234830,4.04936341,182.61,182.56,6.06229423]
[1755529235038,4.04936341,182.6,182.56,6.06229423]
[1755529235237,54.0,182.64,182.56,6.06229423]
[1755529235437,8.36655458,182.63,182.56,6.06229423]
[1755529235736,4.05253962,182.62,182.56,6.06229423]
[1755529235936,4.05253962,182.61,182.52,6.06229423]
[1755529236136,4.05253962,182.6,182.52,6.06229423]
[1755529236337,4.05253962,182.59,182.52,6.06229423]
[1755529236539,70.44,182.64,182.53,5.4757]
[1755529236738,24.81011194,182.63,182.53,5.4757]
[1755529236940,4.05479064,182.62,182.52,6.06229423]
[1755529237239,4.05479064,182.61,182.53,5.4757]
[1755529237537,4.05479064,182.6,182.55,6.06229423]
[1755529237841,54.0,182.64,182.55,11.53719423]
[1755529238035,4.05450842,182.63,182.55,11.53719423]
[1755529238234,4.05450842,182.62,182.55,11.53719423]
[1755529238435,4.05450842,182.61,182.58,3.84650712]
[1755529238635,4.05450842,182.6,182.58,3.84650712]
[1755529238831,162.66829939,182.66,182.58,3.84650712]
[1755529239041,8.36895364,182.65,182.58,3.84650712]
[1755529239236,4.05432995,182.64,182.58,3.84650712]
[1755529239436,4.05432995,182.63,182.58,3.84650712]
[1755529239642,4.05432995,182.62,182.58,3.84650712]
[1755529239843,4.05432995,182.61,182.58,3.84650712]
[1755529240043,162.66829939,182.66,182.58,3.84650712]
[1755529240343,8.36762907,182.65,182.56,11.53566569]
[1755529240543,4.05376581,182.64,182.56,6.06086569]
[1755529240741,4.05376581,182.63,182.56,6.06086569]
[1755529240936,4.05376581,182.62,182.53,6.06086569]
[1755529241138,4.05376581,182.61,182.53,6.06086569]
[1755529241336,4.05376581,182.6,182.53,6.06086569]
[1755529241534,4.05376581,182.59,182.53,6.06086569]
[1755529241840,4.05376581,182.58,182.53,6.06086569]
[1755529242041,6.06009059,182.64,182.53,11.53646569]
[1755529242242,8.3707614,182.63,182.53,11.53646569]
[1755529242441,8.3707614,182.62,182.53,11.53646569]
[1755529242743,4.05506983,182.61,182.53,11.53646569]
[1755529242943,4.05506983,182.6,182.53,11.53646569]
[1755529243145,4.05506983,182.59,182.53,11.53646569]
[1755529243344,152.28838998,182.66,182.53,6.06086569]
[1755529243542,8.37068598,182.65,182.53,6.06086569]
[1755529243738,8.37068598,182.64,182.53,6.06086569]
[1755529243944,4.05493622,182.63,182.55,5.475]
[1755529244140,4.05493622,182.62,182.55,5.475]
[1755529244339,4.05493622,182.61,182.55,5.475]
[1755529244534,4.05493622,182.6,182.55,5.475]
[1755529244738,54.0,182.65,182.55,5.475]
[1755529244947,4.0545179,182.64,182.55,5.475]
[1755529245146,4.0545179,182.63,182.55,5.475]
[1755529245345,4.0545179,182.62,182.55,5.475]
[1755529245539,4.0545179,182.61,182.55,5.475]
[1755529245741,54.0,182.65,182.56,5.4748]
[1755529246040,4.05434114,182.64,182.57,6.06086569]
[1755529246245,54.0,182.65,182.57,11.53536569]
[1755529246246,4.05434114,182.63,182.57,11.53536569]
[1755529246445,4.05434114,182.62,182.57,11.53536569]
[1755529246646,4.05434114,182.61,182.57,6.06086569]
[1755529246944,54.0,182.65,182.57,6.06086569]
[1755529246945,4.05477436,182.6,182.57,6.06086569]
[1755529247145,54.0,182.65,182.57,6.06086569]
[1755529247349,8.37135696,182.64,182.57,6.06086569]
[1755529247543,4.05506358,182.63,182.57,6.06086569]
[1755529247748,4.05506358,182.62,182.57,6.06086569]
[1755529247941,4.05506358,182.61,182.57,6.06086569]
[1755529248142,4.05506358,182.6,182.57,6.06086569]
[1755529248446,54.0,182.65,182.57,6.06086569]
[1755529248646,8.37099823,182.64,182.57,6.06086569]
[1755529248844,4.05484484,182.63,182.53,6.06086569]
[1755529249044,16.44,182.65,182.53,6.06086569]
[1755529249045,8.37156888,182.62,182.53,6.06086569]
[1755529249247,4.05484484,182.61,182.53,6.06086569]
[1755529249438,4.05484484,182.6,182.53,6.06086569]
[1755529249635,4.05484484,182.59,182.53,6.06086569]
[1755529249847,4.05484484,182.58,182.53,6.06086569]
[1755529250048,22.50009059,182.65,182.53,6.06086569]
[1755529250246,27.40810941,182.64,182.53,6.06086569]
[1755529250446,8.37221792,182.63,182.53,6.06086569]
[1755529250648,8.37221792,182.62,182.53,6.06086569]
[1755529250950,4.05548269,182.61,182.53,6.06086569]
[1755529251144,4.05548269,182.6,182.53,6.06086569]
[1755529251345,4.05548269,182.59,182.53,6.06086569]
[1755529251545,4.05548269,182.58,182.53,6.06086569]
[1755529251747,4.05548269,182.57,182.53,6.06086569]
[1755529252051,22.50009059,182.64,182.53,6.06086569]
[1755529252250,8.3727414,182.63,182.53,6.06086569]
[1755529252446,8.3727414,182.62,182.53,6.06086569]
[1755529252649,4.05573552,182.61,182.53,11.53656569]
[1755529252849,4.05573552,182.6,182.53,11.53656569]
[1755529253051,4.05573552,182.59,182.53,11.53656569]
[1755529253240,4.05573552,182.58,182.53,11.53656569]
[1755529253445,159.76,182.64,182.53,11.53656569]
[1755529253750,8.37258868,182.63,182.53,11.53656569]
[1755529253943,8.37258868,182.62,182.53,11.53656569]
[1755529254144,4.0556613,182.61,182.53,11.53656569]
[1755529254347,4.0556613,182.6,182.53,11.53656569]
[1755529254545,4.0556613,182.59,182.53,11.53656569]
[1755529254848,54.0,182.63,182.53,6.06086569]
[1755529255049,4.05513714,182.62,182.53,6.06086569]
[1755529255244,4.05513714,182.61,182.54,5.4754]
[1755529255452,4.05513714,182.6,182.54,5.4754]
[1755529255652,143.32,182.64,182.53,6.06086569]
[1755529255653,4.05513714,182.59,182.53,6.06086569]
[1755529255851,143.32,182.64,182.53,6.06086569]
[1755529256049,8.37178767,182.63,182.53,6.06086569]
[1755529256255,4.05521231,182.62,182.53,6.06086569]
[1755529256550,4.05521231,182.61,182.53,6.06086569]
[1755529256749,4.05521231,182.6,182.53,6.06086569]
[1755529256948,143.32,182.64,182.55,5.475]
[1755529257148,4.05468405,182.63,182.55,5.475]
[1755529257357,4.05468405,182.62,182.55,5.475]
[1755529257550,4.05468405,182.61,182.55,5.475]
[1755529257750,4.05468405,182.6,182.53,6.06086569]
[1755529257950,4.05491332,182.59,182.53,6.06086569]
[1755529258154,159.76,182.64,182.53,6.06086569]
[1755529258155,4.05527206,182.58,182.53,6.06086569]
[1755529258452,159.76,182.64,182.53,6.06086569]
[1755529258653,24.81167026,182.63,182.53,6.06086569]
[1755529258855,4.05518506,182.62,182.53,6.06086569]
[1755529259049,4.05518506,182.61,182.53,11.53656569]
[1755529259249,4.05518506,182.6,182.53,11.53656569]
[1755529259450,4.05518506,182.59,182.53,11.53656569]
[1755529259651,143.32,182.64,182.44,153.9368]
[1755529259853,4.05448731,182.63,182.57,6.06086569]
[1755529260051,4.05448731,182.62,182.57,6.06086569]
[1755529260250,4.05448731,182.61,182.57,6.06086569]
[1755529260450,143.32,182.64,182.58,3.84643209]
[1755529260451,4.05448731,182.6,182.58,3.84643209]
[1755529260655,4.05448731,182.59,182.58,3.84643209]
[1755529260954,143.32,182.64,182.58,3.84643209]
[1755529261150,16.44,182.68,182.61,3.84643209]
[1755529261151,6.06009059,182.68,182.61,3.84643209]
[1755529261347,6.06009059,182.71,182.64,3.84643209]
[1755529261544,4.29806624,182.7,182.64,3.84643209]
[1755529261745,518.44009059,182.72,182.64,3.84643209]
[1755529262049,4.29597095,182.71,182.64,3.84643209]
[1755529262254,4.29597095,182.7,182.49,3.84643209]
[1755529262556,518.44009059,182.72,182.65,3.84643209]
[1755529262750,4.29503325,182.71,182.65,3.84643209]
[1755529262951,512.38,182.72,182.68,3.84643209]
[1755529263459,144.2,182.72,182.68,3.84643209]
[1755529264954,144.2,182.72,182.67,3.84643209]
[1755529265351,4.29281007,182.71,182.64,3.84643209]
[1755529265553,144.2,182.72,182.63,3.84643209]
[1755529265747,54.0,182.74,182.54,62.0]
[1755529265748,4.29299735,182.71,182.67,3.84643209]
[1755529265948,16.44,182.75,182.67,3.84643209]
[1755529266152,4.29233609,182.74,182.67,3.84643209]
[1755529266354,4.29233609,182.73,182.67,3.84643209]
[1755529266548,16.44,182.75,182.67,3.84643209]
[1755529266752,4.29077396,182.74,182.67,3.84643209]
[1755529266952,16.44,182.75,182.67,3.84643209]
[1755529267350,4.29068039,182.74,182.67,3.84643209]
[1755529267557,16.44,182.75,182.67,3.84643209]
[1755529267850,4.28866599,182.74,182.64,5.4723]
[1755529268156,16.44,182.75,182.6,3.84643209]
[1755529268359,16.44,182.75,182.68,3.84643209]
[1755529268752,16.44,182.75,182.6,3.84643209]
[1755529269257,16.44,182.75,182.67,3.84643209]
[1755529270165,4.28623976,182.74,182.67,3.84643209]
[1755529270360,16.44,182.75,182.67,3.84643209]
[1755529270567,4.28545928,182.74,182.67,3.84643209]
[1755529270763,144.36,182.76,182.67,3.84643209]
[1755529270962,4.28536582,182.75,182.67,3.84643209]
[1755529271163,4.28536582,182.74,182.67,3.84643209]
[1755529271363,144.36,182.76,182.67,3.84643209]
[1755529271566,4.28448488,182.75,182.66,3.84643209]
[1755529271764,4.28448488,182.74,182.66,3.84643209]
[1755529271969,4.28448488,182.74,182.64,3.84643209]
[1755529272375,4.28448488,182.74,182.5,9.067056]
[1755529272376,24.57091697,182.74,182.5,9.067056]
[1755529272576,20.28643209,182.71,182.58,3.84643209]
[1755529272779,20.28643209,182.68,182.55,3.84643209]
[1755529272977,152.33520444,182.67,182.55,3.84643209]
[1755529273179,8.27520444,182.66,182.55,3.84643209]
[1755529273475,3.99071956,182.65,182.55,3.84643209]
[1755529273676,3.99071956,182.64,182.57,3.84643209]
[1755529273868,3.99071956,182.63,182.57,3.84643209]
[1755529274071,144.06,182.67,182.6,3.84643209]
[1755529274274,3.99063693,182.66,182.6,3.84643209]
[1755529274474,144.06,182.67,182.6,3.84643209]
[1755529274674,3.9909312,182.66,182.6,3.84643209]
[1755529274877,144.06,182.67,182.6,3.84643209]
[1755529275074,3.99093028,182.66,182.6,3.84643209]
[1755529275278,3.99093028,182.65,182.6,3.84643209]
[1755529275479,144.06,182.67,182.6,3.84643209]
[1755529275674,3.99189067,182.66,182.5,62.0]
[1755529275880,3.99189067,182.65,182.57,3.84643209]
[1755529276080,3.99189067,182.64,182.57,3.84643209]
[1755529276282,3.99189067,182.63,182.57,3.84643209]
[1755529276484,3.99189067,182.62,182.57,3.84643209]
[1755529276676,144.06,182.67,182.57,3.84643209]
[1755529276875,8.28079583,182.66,182.57,3.84643209]
[1755529277076,3.99263671,182.65,182.57,3.84643209]
[1755529277273,3.99263671,182.64,182.57,3.84643209]
[1755529277584,3.99263671,182.63,182.43,388.024456]
[1755529277784,3.99263671,182.62,182.53,3.84643209]
[1755529278084,3.99263671,182.61,182.53,3.84643209]
[1755529278290,147.90643209,182.67,182.53,3.84643209]
[1755529278482,8.28175675,182.66,182.53,3.84643209]
[1755529278786,8.28175675,182.65,182.53,3.84643209]
[1755529279086,3.99314278,182.64,182.56,3.84643209]
[1755529279281,3.99314278,182.63,182.58,3.84643209]
[1755529279476,144.08,182.67,182.58,3.84643209]
[1755529279477,3.99314278,182.62,182.58,3.84643209]
[1755529279681,144.08,182.67,182.58,3.84643209]
[1755529279986,3.99266409,182.66,182.58,3.84643209]
[1755529280186,3.99266409,182.65,182.58,3.84643209]
[1755529280384,3.99266409,182.64,182.58,3.84643209]
[1755529280579,3.99266409,182.63,182.58,3.84643209]
[1755529280786,143.92,182.68,182.58,3.84643209]
[1755529280988,3.99265171,182.67,182.58,3.84643209]
[1755529281286,3.99265171,182.66,182.58,3.84643209]
[1755529281485,3.99265171,182.65,182.58,3.84643209]
[1755529281788,143.92,182.68,182.61,3.84643209]
[1755529281983,3.9920348,182.67,182.61,3.84643209]
[1755529282182,3.9920348,182.66,182.61,3.84643209]
[1755529282375,3.99233087,182.65,182.49,3.84643209]
[1755529282577,143.92,182.68,182.61,3.84643209]
[1755529282783,3.99211074,182.67,182.61,9.31973209]
[1755529282990,143.92,182.68,182.64,3.84643209]
[1755529283189,3.99208413,182.67,182.64,3.84643209]
[1755529283388,143.92,182.68,182.64,3.84643209]
[1755529283589,145.62943364,182.7,182.51,9.067056]
[1755529283786,3.9912809,182.69,182.63,3.84643209]
[1755529283991,3.9912809,182.68,182.6,5.4734]
[1755529284192,145.62943364,182.7,182.63,3.84643209]
[1755529284386,3.99118945,182.69,182.63,3.84643209]
[1755529284584,3.99118945,182.68,182.63,3.84643209]
[1755529284784,6.06009059,182.75,182.66,3.84643209]
[1755529284988,3.99100469,182.74,182.69,3.84643209]
[1755529285188,3.99100469,182.73,182.69,3.84643209]
[1755529285391,3.99100469,182.72,182.69,3.84643209]
[1755529285591,6.06009059,182.78,182.69,3.84643209]
[1755529285793,152.51367469,182.77,182.69,3.84643209]
[1755529285994,3.98955592,182.76,182.69,3.84643209]
[1755529286194,3.98955592,182.75,182.69,3.84643209]
[1755529286489,3.98955592,182.74,182.69,3.84643209]
[1755529286696,144.24,182.77,182.69,3.84643209]
[1755529286892,3.987793,182.76,182.69,3.84643209]
[1755529287091,3.987793,182.75,182.69,3.84643209]
[1755529287286,144.24,182.77,182.6,3.84643209]
[1755529287491,3.98646063,182.76,182.7,3.84643209]
[1755529287695,3.98646063,182.75,182.7,3.84643209]
[1755529287897,3.98672088,182.74,182.7,3.84643209]
[1755529288093,144.24,182.77,182.7,3.84643209]
[1755529288296,3.98534495,182.76,182.7,3.84643209]
[1755529288593,3.98534495,182.75,182.73,3.84643209]
[1755529288788,144.0,182.81,182.73,3.84643209]
[1755529288994,3.98480616,182.8,182.73,3.84643209]
[1755529289189,3.98480616,182.79,182.73,3.84643209]
[1755529289397,3.98480616,182.78,182.73,3.84643209]
[1755529289694,144.0,182.81,182.73,3.84643209]
[1755529289893,3.98274263,182.8,182.71,3.84643209]
[1755529290098,3.98274263,182.79,182.71,3.84643209]
[1755529290298,3.98274263,182.78,182.71,3.84643209]
[1755529290500,144.0,182.81,182.71,3.84643209]
[1755529290692,3.98124252,182.8,182.71,3.84643209]
[1755529290893,3.98124252,182.79,182.71,3.84643209]
[1755529291100,3.98124252,182.78,182.71,3.84643209]
[1755529291298,144.0,182.81,182.71,3.84643209]
[1755529291498,3.97961668,182.8,182.71,3.84643209]
[1755529291800,3.97961668,182.79,182.71,3.84643209]
[1755529292006,3.97961668,182.78,182.71,3.84643209]
[1755529292299,144.0,182.81,182.71,3.84643209]
[1755529292499,3.9783528,182.8,182.71,3.84643209]
[1755529292698,3.9783528,182.79,182.71,3.84643209]
[1755529293002,3.9783528,182.78,182.71,3.84643209]
[1755529293201,144.0,182.81,182.71,3.84643209]
[1755529293400,3.97754632,182.8,182.71,3.84643209]
[1755529293701,3.97754632,182.79,182.71,3.84643209]
[1755529293905,3.97754632,182.78,182.71,3.84643209]